lending/lending_fUSD_20241120
["ID","MTS","AMOUNT","RATE_DAILY","PERIOD"]
[342737559,1732090319206,-511.99,0.0005726,120]
[342737560,1732090319216,-500.0,0.0005726,120]
[342737561,1732090319225,-702.33,0.0005726,120]
[342737562,1732090319235,-500.0,0.0005726,120]
[342737563,1732090319243,-500.0,0.0005726,120]
[342737564,1732090319252,-500.0,0.0005726,120]
[342737565,1732090319262,-505.00427016,0.0005726,120]
[342737566,1732090319271,-500.0,0.0005726,120]
[342737567,1732090319282,-500.0,0.0005726,120]
[342737568,1732090319291,-500.0,0.0005726,120]
[342737569,1732090319303,-500.0,0.0005726,120]
[342737570,1732090319321,-500.0,0.0005726,120]
[342737571,1732090319340,-544.55943556,0.0005726,120]
[342737572,1732090319360,-500.0,0.0005726,120]
[342737573,1732090319380,-797.68,0.0005726,120]
[342737574,1732090319396,-500.0,0.0005726,120]
[342737575,1732090319415,-304.36,0.0005726,120]
[342737576,1732090319435,-404.66365072,0.0005726,120]
[342737577,1732090319454,-504.17310084,0.0005726,120]
[342737578,1732090319472,-500.0,0.0005726,120]
[342737579,1732090319491,-500.0,0.0005726,120]
[342737580,1732090319505,-500.0,0.0005726,120]
[342737581,1732090319524,-500.0,0.0005726,120]
[342737582,1732090319543,-206.2621448,0.0005726,120]
[342737583,1732090319562,-500.0,0.0005726,120]
[342737584,1732090319579,-500.0,0.0005726,120]
[342737585,1732090319594,-286.44285168,0.0005726,120]
[342737586,1732090319610,-500.0,0.0005726,120]
[342737587,1732090319625,-500.0,0.0005726,120]
[342737588,1732090319641,-500.0,0.0005726,120]
[342737589,1732090319657,-500.0,0.0005726,120]
[342737590,1732090319673,-282.36723221,0.0005726,120]
[342737591,1732090319689,-500.0,0.0005726,120]
[342737592,1732090319705,-500.0,0.0005726,120]
[342737593,1732090319720,-503.66580176,0.0005726,120]
[342737594,1732090319734,-500.0,0.0005726,120]
[342737595,1732090319750,-424.27463307,0.0005726,120]
[342737596,1732090319764,-150.0,0.0005726,120]
[342737597,1732090319781,-288.24926061,0.0005726,120]
[342737598,1732090319797,-500.0,0.0005726,120]
[342737599,1732090319812,-500.0,0.0005726,120]
[342737600,1732090319828,-500.0,0.0005726,120]
[342737601,1732090319843,-500.0,0.0005726,120]
[342737602,1732090319859,-500.0,0.0005726,120]
[342737603,1732090319874,-500.0,0.0005726,120]
[342737604,1732090319889,-500.0,0.0005726,120]
[342737605,1732090319904,-500.0,0.0005726,120]
[342737606,1732090319919,-500.0,0.0005726,120]
[342737607,1732090319933,-500.0,0.0005726,120]
[342737608,1732090319949,-514.31,0.0005726,120]
[342737609,1732090319964,-500.0,0.0005726,120]
[342737610,1732090319978,-500.0,0.0005726,120]
[342737611,1732090319992,-500.0,0.0005726,120]
[342737612,1732090320007,-500.0,0.0005726,120]
[342737613,1732090320022,-500.0,0.0005726,120]
[342737614,1732090320038,-500.0,0.0005726,120]
[342737615,1732090320055,-500.0,0.0005726,120]
[342737616,1732090320070,-500.0,0.0005726,120]
[342737617,1732090320085,-849.65,0.0005726,120]
[342737618,1732090320099,-500.0,0.0005726,120]
[342737619,1732090320114,-500.0,0.0005726,120]
[342737620,1732090320129,-500.0,0.0005726,120]
[342737621,1732090320145,-569.0,0.0005726,120]
[342737622,1732090320161,-500.0,0.0005726,120]
[342737623,1732090320177,-500.0,0.0005726,120]
[342737624,1732090320193,-500.0,0.0005726,120]
[342737625,1732090320208,-500.0,0.0005726,120]
[342737626,1732090320224,-700.75,0.0005726,120]
[342737627,1732090320240,-2068.02,0.0005726,120]
[342737628,1732090320254,-500.0,0.0005726,120]
[342737629,1732090320270,-500.0,0.0005726,120]
[342737630,1732090320286,-798.52,0.0005726,120]
[342737631,1732090320305,-1516.88,0.0005726,120]
[342737632,1732090320320,-1000.0,0.0005726,120]
[342737633,1732090320335,-982.26,0.0005726,120]
[342737634,1732090320351,-500.0,0.0005726,120]
[342737635,1732090320365,-500.0,0.0005726,120]
[342737636,1732090320382,-608.27440312,0.0005726,120]
[342737637,1732090320396,-500.0,0.0005726,120]
[342737638,1732090320411,-650.76,0.0005726,21]
[342737639,1732090320425,-500.0,0.0005726,120]
[342737640,1732090320440,-500.0,0.0005726,120]
[342737641,1732090320453,-500.0,0.0005726,120]
[342737642,1732090320468,-500.0,0.0005726,30]
[342737643,1732090320483,-998.06,0.0005726,120]
[342737644,1732090320497,-505.75755301,0.0005726,120]
[342737645,1732090320511,-500.0,0.0005726,120]
[342737646,1732090320526,-2581.57,0.0005726,120]
[342737647,1732090320541,-500.0,0.0005726,120]
[342737648,1732090320555,-584.84132497,0.0005726,120]
[342737649,1732090320570,-635.36,0.0005726,120]
[342737650,1732090320585,-500.0,0.0005726,120]
[342737651,1732090320600,-500.0,0.0005726,120]
[342737652,1732090320614,-3061.68,0.0005726,120]
[342737653,1732090320629,-373.20471525,0.0005726,120]
[342737654,1732090320643,-2031.6,0.0005726,120]
[342737655,1732090320658,-500.0,0.0005726,120]
[342737656,1732090320671,-500.0,0.0005726,120]
[342737657,1732090320686,-500.0,0.0005726,120]
[342737658,1732090320700,-3206.56,0.0005726,120]
[342737659,1732090320714,-711.44,0.0005726,120]
[342737660,1732090320729,-500.0,0.0005726,120]
[342737661,1732090320747,-180.42693106,0.0005726,120]
[342737662,1732090320760,-500.0,0.0005726,120]
[342737663,1732090320774,-729.82,0.0005726,120]
[342737664,1732090320792,-5192.93,0.0005726,120]
[342737665,1732090320807,-500.0,0.0005726,120]
[342737666,1732090320821,-500.0,0.0005726,120]
[342737667,1732090320836,-500.0,0.0005726,120]
[342737668,1732090320849,-500.0,0.0005726,120]
[342737669,1732090321046,-500.0,0.0005726,120]
[342737670,1732090321055,-500.0,0.0005726,120]
[342737671,1732090321065,-318.27473821,0.0005726,120]
[342737672,1732090321563,-500.0,0.00055342,120]
[342737673,1732090321573,-500.0,0.00055342,120]
[342737674,1732090321583,-181.72526179,0.0005726,120]
[342737675,1732090321592,-500.0,0.0005726,120]
[342737676,1732090321602,-500.0,0.0005726,120]
[342737677,1732090321611,-707.74,0.0005726,120]
[342737678,1732090321620,-500.0,0.0005726,120]
[342737679,1732090321629,-647.87,0.0005726,120]
[342737680,1732090321638,-500.0,0.0005726,120]
[342737681,1732090321647,-500.0,0.0005726,120]
[342737682,1732090321656,-720.2,0.0005726,120]
[342737683,1732090321665,-517.3212597,0.0005726,120]
[342737684,1732090321674,-615.10880212,0.0005726,120]
[342737685,1732090321684,-717.59,0.0005726,120]
[342737686,1732090321693,-500.0,0.0005726,120]
[342737687,1732090321702,-1703.66,0.0005726,120]
[342737688,1732090321711,-508.31,0.0005726,120]
[342737689,1732090321720,-500.0,0.0005726,120]
[342737690,1732090321729,-500.0,0.0005726,120]
[342737691,1732090321739,-500.0,0.0005726,120]
[342737692,1732090321748,-500.0,0.0005726,120]
[342737693,1732090321757,-500.0,0.0005726,120]
[342737694,1732090321767,-500.0,0.0005726,120]
[342737695,1732090321777,-2604.2,0.0005726,120]
[342737696,1732090321790,-500.0,0.0005726,120]
[342737697,1732090321802,-2810.53,0.0005726,120]
[342737698,1732090321812,-350.59074427,0.0005726,120]
[342737699,1732090321822,-500.0,0.0005726,120]
[342737700,1732090321831,-2080.78,0.0005726,120]
[342737701,1732090321841,-500.0,0.0005726,120]
[342737702,1732090321850,-500.22,0.0005726,120]
[342737703,1732090321860,-1137.2,0.0005726,3]
[342737704,1732090321870,-642.24,0.0005726,30]
[342737705,1732090321879,-1301.4,0.0005726,120]
[342737706,1732090321889,-500.0,0.0005726,120]
[342737707,1732090321898,-505.72,0.0005726,120]
[342737708,1732090321908,-500.0,0.0005726,120]
[342737709,1732090321917,-500.0,0.0005726,120]
[342737710,1732090321926,-500.0,0.0005726,120]
[342737711,1732090321936,-238.37162382,0.0005726,120]
[342737712,1732090321947,-500.0,0.0005726,120]
[342737713,1732090321957,-946.93,0.0005726,120]
[342737714,1732090321968,-500.0,0.0005726,120]
[342737715,1732090321977,-500.0,0.0005726,120]
[342737716,1732090321987,-500.0,0.0005726,120]
[342737717,1732090321996,-503.75168606,0.0005726,120]
[342737718,1732090322005,-667.95,0.0005726,120]
[342737719,1732090322015,-500.0,0.0005726,120]
[342737720,1732090322024,-500.0,0.0005726,120]
[342737721,1732090322036,-500.0,0.0005726,120]
[342737722,1732090322048,-500.0,0.0005726,120]
[342737723,1732090322057,-500.0,0.0005726,120]
[342737724,1732090322067,-500.0,0.0005726,120]
[342737725,1732090322076,-500.0,0.0005726,120]
[342737726,1732090322085,-500.0,0.0005726,120]
[342737727,1732090322094,-574.19258079,0.0005726,120]
[342737728,1732090322104,-500.0,0.0005726,120]
[342737729,1732090322113,-2018.0,0.00057263,2]
[342737730,1732090322123,-1100.0,0.00057284,120]
[342737731,1732090322132,-3000.0,0.000573,90]
[342737732,1732090322144,-1500.0,0.000573,90]
[342737733,1732090322154,-201.0,0.000574,30]
[342737734,1732090322164,-204.0,0.000574,30]
[342737735,1732090322173,-214.0,0.000574,120]
[342737736,1732090322183,-160.864485,0.00057462,120]
[342737737,1732090322193,-500.0,0.00057533,120]
[342737738,1732090322203,-368.69008546,0.00057533,120]
[342737739,1732090322214,-500.0,0.00057533,120]
[342737740,1732090322222,-500.0,0.00057534,120]
[342737741,1732090322232,-500.0,0.00057534,120]
[342737742,1732090322240,-583.63,0.00057534,120]
[342737743,1732090322250,-500.0,0.00057534,120]
[342737744,1732090322259,-500.0,0.00057534,120]
[342737745,1732090322269,-1068.5,0.00057534,120]
[342737746,1732090322278,-598.94,0.00057534,120]
[342737747,1732090322289,-1682.29,0.00057534,120]
[342737748,1732090322303,-500.0,0.00057534,120]
[342737749,1732090322312,-500.0,0.00057534,120]
[342737750,1732090322321,-12247.35,0.00057534,120]
[342737751,1732090322330,-1420.1,0.00057534,120]
[342737752,1732090322339,-500.0,0.00057534,120]
[342737753,1732090322349,-1292.82,0.00057534,120]
[342737754,1732090322358,-500.0,0.00057534,120]
[342737755,1732090322367,-1329.44,0.00057534,120]
[342737756,1732090322377,-500.0,0.00057534,120]
[342737757,1732090322386,-500.0,0.00057534,120]
[342737758,1732090322395,-1607.8,0.00057534,120]
[342737759,1732090322405,-500.0,0.00057534,120]
[342737760,1732090322414,-1376.52,0.00057534,120]
[342737761,1732090322423,-500.0,0.00057534,120]
[342737762,1732090322432,-500.0,0.00057534,120]
[342737763,1732090322441,-742.7,0.00057534,20]
[342737764,1732090322449,-843.95,0.00057534,120]
[342737765,1732090322458,-500.0,0.00057534,120]
[342737766,1732090322467,-500.0,0.00057534,120]
[342737767,1732090322477,-500.0,0.00057534,120]
[342737768,1732090322486,-416.08,0.00057534,120]
[342737769,1732090322495,-500.0,0.00057534,120]
[342737770,1732090322505,-272.69584574,0.00057534,120]
[342737771,1732090322514,-500.0,0.00057534,120]
[342737772,1732090322523,-504.04866233,0.00057534,120]
[342737773,1732090322532,-1244.57,0.00057534,120]
[342737774,1732090322543,-500.0,0.00057534,120]
[342737775,1732090322552,-1316.06,0.00057534,120]
[342737776,1732090322561,-500.0,0.00057534,120]
[342737777,1732090322570,-553.01,0.00057534,120]
[342737778,1732090322579,-500.0,0.00057534,120]
[342737779,1732090322588,-721.45,0.00057534,120]
[342737780,1732090322597,-2365.65,0.00057534,120]
[342737781,1732090322605,-526.18,0.00057534,120]
[342737782,1732090322614,-500.0,0.00057534,120]
[342737783,1732090322623,-1140.86,0.00057534,120]
[342737784,1732090322632,-1206.39,0.00057534,120]
[342737785,1732090322641,-500.0,0.00057534,120]
[342737786,1732090322650,-851.18,0.00057534,120]
[342737787,1732090322659,-811.24,0.00057534,21]
[342737788,1732090322668,-500.0,0.00057534,120]
[342737789,1732090322677,-500.0,0.00057534,120]
[342737790,1732090322686,-500.0,0.00057534,120]
[342737791,1732090322694,-500.0,0.00057534,120]
[342737792,1732090322704,-500.0,0.00057534,120]
[342737793,1732090322712,-500.0,0.00057534,120]
[342737794,1732090322722,-500.0,0.00057534,120]
[342737795,1732090322731,-500.0,0.00057534,120]
[342737796,1732090322740,-500.0,0.00057534,120]
[342737797,1732090322749,-1177.91,0.00057534,120]
[342737798,1732090322759,-500.0,0.00057534,120]
[342737799,1732090322768,-3911.81,0.00057534,120]
[342737800,1732090322778,-7513.0,0.00057534,3]
[342737801,1732090322788,-500.0,0.00057534,120]
[342737802,1732090322798,-810.73,0.00057534,120]
[342737803,1732090322807,-563.34,0.00057534,120]
[342737804,1732090322816,-500.0,0.00057534,120]
[342737805,1732090322825,-618.5,0.00057534,120]
[342737806,1732090322835,-500.0,0.00057534,120]
[342737807,1732090322845,-500.0,0.00057534,120]
[342737808,1732090322854,-500.0,0.00057534,120]
[342737809,1732090322863,-500.0,0.00057534,120]
[342737810,1732090322872,-500.0,0.00057534,21]
[342737811,1732090322881,-500.0,0.00057534,120]
[342737812,1732090322891,-531.91,0.00057534,60]
[342737813,1732090322900,-703.55,0.00057534,120]
[342737814,1732090322909,-500.0,0.00057534,120]
[342737815,1732090322918,-578.53,0.00057534,120]
[342737816,1732090322928,-500.0,0.00057534,120]
[342737817,1732090322937,-500.0,0.00057534,120]
[342737818,1732090322947,-500.0,0.00057534,120]
[342737819,1732090322956,-1133.36,0.00057534,120]
[342737820,1732090322966,-500.0,0.00057534,120]
[342737821,1732090322975,-500.0,0.00057534,120]
[342737822,1732090322984,-646.34,0.00057534,7]
[342737823,1732090322994,-500.0,0.00057534,120]
[342737824,1732090323004,-500.0,0.00057534,120]
[342737825,1732090323014,-500.0,0.00057534,120]
[342737826,1732090323024,-1092.33,0.00057534,120]
[342737827,1732090323034,-339.67,0.00057534,120]
[342737828,1732090323048,-323.39628505,0.00057534,120]
[342737829,1732090323059,-382.14,0.00057534,120]
[342737830,1732090323069,-576.16,0.00057534,120]
[342737831,1732090323080,-500.0,0.00057534,120]
[342737832,1732090323091,-642.09,0.00057534,3]
[342737833,1732090323101,-1126.69,0.00057534,120]
[342737834,1732090323112,-631.32,0.00057534,120]
[342737835,1732090323122,-705.53,0.00057534,120]
[342737836,1732090323132,-500.0,0.00057534,120]
[342737837,1732090323142,-481.1551,0.00057534,120]
[342737838,1732090323152,-1013.55,0.00057534,120]
[342737839,1732090323163,-1520.14,0.00057534,120]
[342737840,1732090323173,-500.0,0.00057534,120]
[342737841,1732090323183,-500.0,0.00057534,120]
[342737842,1732090323193,-500.0,0.00057534,120]
[342737843,1732090323202,-500.0,0.00057534,21]
[342737844,1732090323212,-500.0,0.00057534,120]
[342737845,1732090323222,-2168.51,0.00057534,120]
[342737846,1732090323232,-500.0,0.00057534,120]
[342737847,1732090323241,-500.0,0.00057534,120]
[342737848,1732090323251,-500.0,0.00057534,120]
[342737849,1732090323261,-500.0,0.00057534,120]
[342737850,1732090323270,-500.0,0.00057534,120]
[342737851,1732090323280,-500.0,0.00057534,120]
[342737852,1732090323296,-500.0,0.00057534,120]
[342737853,1732090323308,-594.32,0.00057534,120]
[342737854,1732090323317,-500.0,0.00057534,120]
[342737855,1732090323327,-500.0,0.00057534,120]
[342737856,1732090323336,-709.11,0.00057534,120]
[342737857,1732090323347,-511.99,0.00057534,120]
[342737858,1732090323357,-500.0,0.00057534,120]
[342737859,1732090323367,-702.33,0.00057534,120]
[342737860,1732090323378,-150.56,0.00057534,120]
[342737861,1732090323389,-350.4662397,0.00057534,120]
[342737862,1732090323400,-291.58012676,0.00057534,120]
[342737863,1732090323410,-500.0,0.00057534,120]
[342737864,1732090323419,-500.0,0.00057534,120]
[342737865,1732090323429,-500.0,0.00057534,120]
[342737866,1732090323438,-500.0,0.00057534,120]
[342737867,1732090323448,-500.0,0.00057534,120]
[342737868,1732090323457,-500.0,0.00057534,120]
[342737869,1732090323467,-797.68,0.00057534,120]
[342737870,1732090323476,-500.0,0.00057534,120]
[342737871,1732090323486,-500.0,0.00057534,120]
[342737872,1732090323495,-500.0,0.00057534,120]
[342737873,1732090323505,-500.0,0.00057534,120]
[342737874,1732090323516,-500.0,0.00057534,120]
[342737875,1732090323526,-500.0,0.00057534,120]
[342737876,1732090323538,-500.0,0.00057534,120]
[342737877,1732090323548,-500.0,0.00057534,120]
[342737878,1732090323558,-500.0,0.00057534,120]
[342737879,1732090323568,-500.0,0.00057534,120]
[342737880,1732090323578,-500.0,0.00057534,120]
[342737881,1732090323588,-500.0,0.00057534,120]
[342737882,1732090323598,-500.0,0.00057534,120]
[342737883,1732090323608,-500.0,0.00057534,120]
[342737884,1732090323618,-150.0,0.00057534,120]
[342737885,1732090323628,-430.70074782,0.00057534,120]
[342737886,1732090323638,-500.0,0.00057534,120]
[342737887,1732090323647,-491.54273322,0.00057534,120]
[342737888,1732090323657,-500.0,0.00057534,120]
[342737889,1732090323666,-645.18,0.00057534,120]
[342737890,1732090323676,-500.0,0.00057534,120]
[342737891,1732090323686,-500.0,0.00057534,120]
[342737892,1732090323695,-500.0,0.00057534,120]
[342737893,1732090323705,-500.0,0.00057534,120]
[342737894,1732090323715,-500.0,0.00057534,120]
[342737895,1732090323724,-514.31,0.00057534,120]
[342737896,1732090323733,-500.0,0.00057534,120]
[342737897,1732090323743,-500.0,0.00057534,120]
[342737898,1732090323753,-500.0,0.00057534,120]
[342737899,1732090323762,-500.0,0.00057534,120]
[342737900,1732090323771,-500.0,0.00057534,120]
[342737901,1732090323781,-500.0,0.00057534,120]
[342737902,1732090323793,-500.0,0.00057534,120]
[342737903,1732090323803,-500.0,0.00057534,120]
[342737904,1732090323812,-849.65,0.00057534,120]
[342737905,1732090323823,-500.0,0.00057534,120]
[342737906,1732090323832,-500.0,0.00057534,120]
[342737907,1732090323842,-500.0,0.00057534,120]
[342737908,1732090323852,-569.0,0.00057534,120]
[342737909,1732090323863,-500.0,0.00057534,120]
[342737910,1732090323872,-500.0,0.00057534,120]
[342737911,1732090323882,-500.0,0.00057534,120]
[342737912,1732090323892,-500.0,0.00057534,120]
[342737913,1732090323902,-700.75,0.00057534,120]
[342737914,1732090323912,-2068.02,0.00057534,120]
[342737915,1732090323921,-306.77242117,0.00057534,120]
[342737916,1732090323930,-500.0,0.00057534,120]
[342737917,1732090323941,-798.52,0.00057534,120]
[342737918,1732090323951,-1516.88,0.00057534,120]
[342737919,1732090323961,-1000.0,0.00057534,120]
[342737920,1732090323971,-982.26,0.00057534,120]
[342737921,1732090323981,-500.0,0.00057534,120]
[342737922,1732090323991,-500.0,0.00057534,120]
[342737923,1732090324001,-500.0,0.00057534,120]
[342737924,1732090324011,-650.76,0.00057534,21]
[342737925,1732090324021,-500.0,0.00057534,120]
[342737926,1732090324031,-500.0,0.00057534,120]
[342737927,1732090324045,-500.0,0.00057534,120]
[342737928,1732090324054,-500.0,0.00057534,30]
[342737929,1732090324064,-998.06,0.00057534,120]
[342737930,1732090324074,-500.0,0.00057534,120]
[342737931,1732090324084,-2581.57,0.00057534,120]
[342737932,1732090324093,-500.0,0.00057534,120]
[342737933,1732090324103,-635.36,0.00057534,120]
[342737934,1732090324113,-500.0,0.00057534,120]
[342737935,1732090324122,-575.29703843,0.00057534,120]
[342737936,1732090324132,-3061.68,0.00057534,120]
[342737937,1732090324142,-2031.6,0.00057534,120]
[342737938,1732090324152,-500.0,0.00057534,120]
[342737939,1732090324162,-500.0,0.00057534,120]
[342737940,1732090324171,-500.0,0.00057534,120]
[342737941,1732090324180,-3206.56,0.00057534,120]
[342737942,1732090324190,-711.44,0.00057534,120]
[342737943,1732090324200,-500.0,0.00057534,120]
[342737944,1732090324374,-500.0,0.00057534,120]
[342737945,1732090324385,-729.82,0.00057534,120]
[342737946,1732090324396,-5192.93,0.00057534,120]
[342737947,1732090324406,-500.0,0.00057534,120]
[342737948,1732090324415,-500.0,0.00057534,120]
[342737949,1732090324425,-500.0,0.00057534,120]
[342737950,1732090324434,-500.0,0.00057534,120]
[342737951,1732090324444,-500.0,0.00057534,120]
[342737952,1732090324454,-500.0,0.00057534,120]
[342737953,1732090324463,-500.0,0.00057534,120]
[342737954,1732090324474,-500.0,0.00057534,120]
[342737955,1732090324483,-500.0,0.00057534,120]
[342737956,1732090324492,-707.74,0.00057534,120]
[342737957,1732090324502,-500.0,0.00057534,120]
[342737958,1732090324512,-647.87,0.00057534,120]
[342737959,1732090324522,-500.0,0.00057534,120]
[342737960,1732090324531,-500.0,0.00057534,120]
[342737961,1732090324543,-720.2,0.00057534,120]
[342737962,1732090324552,-717.59,0.00057534,120]
[342737963,1732090324562,-500.0,0.00057534,120]
[342737964,1732090324572,-1703.66,0.00057534,120]
[342737965,1732090324581,-508.31,0.00057534,120]
[342737966,1732090324591,-500.0,0.00057534,120]
[342737967,1732090324601,-450.56155071,0.00057534,120]
[342737968,1732090324610,-500.0,0.00057534,120]
[342737969,1732090324619,-500.0,0.00057534,120]
[342737970,1732090324628,-500.0,0.00057534,120]
[342737971,1732090324638,-500.0,0.00057534,120]
[342737972,1732090324647,-2604.2,0.00057534,120]
[342737973,1732090324656,-500.0,0.00057534,120]
[342737974,1732090324665,-2810.53,0.00057534,120]
[342737975,1732090324674,-500.0,0.00057534,120]
[342737976,1732090324683,-2080.78,0.00057534,120]
[342737977,1732090324692,-500.0,0.00057534,120]
[342737978,1732090324701,-500.22,0.00057534,120]
[342737979,1732090324710,-1137.2,0.00057534,3]
[342737980,1732090324720,-642.24,0.00057534,30]
[342737981,1732090324729,-1301.4,0.00057534,120]
[342737982,1732090324738,-500.0,0.00057534,120]
[342737983,1732090324747,-505.72,0.00057534,120]
[342737984,1732090324756,-500.0,0.00057534,120]
[342737985,1732090324766,-500.0,0.00057534,120]
[342737986,1732090324776,-500.0,0.00057534,120]
[342737987,1732090324787,-500.0,0.00057534,120]
[342737988,1732090324796,-946.93,0.00057534,120]
[342737989,1732090324805,-500.0,0.00057534,120]
[342737990,1732090324814,-500.0,0.00057534,120]
[342737991,1732090324824,-500.0,0.00057534,120]
[342737992,1732090324832,-667.95,0.00057534,120]
[342737993,1732090324842,-500.0,0.00057534,120]
[342737994,1732090324851,-500.0,0.00057534,120]
[342737995,1732090324861,-500.0,0.00057534,120]
[342737996,1732090324870,-638.83678474,0.00057534,120]
[342737997,1732090324880,-500.0,0.00057534,120]
[342737998,1732090324889,-500.0,0.00057534,120]
[342737999,1732090324898,-500.0,0.00057534,120]
[342738000,1732090324908,-500.0,0.00057534,120]
[342738001,1732090324917,-500.0,0.00057534,120]
[342738002,1732090324927,-1100.0,0.00057558,120]
[342738003,1732090324936,-500.0,0.00057558,120]
[342738004,1732090324945,-500.0,0.00057619,120]
[342738005,1732090324953,-500.0,0.00057619,120]
[342738006,1732090324962,-159.56790893,0.00057619,120]
[342738007,1732090324971,-500.0,0.00057619,120]
[342738008,1732090324981,-500.0,0.00057619,60]
[342738009,1732090324990,-500.0,0.00057619,120]
[342738010,1732090325000,-500.0,0.00057619,120]
[342738011,1732090325010,-500.0,0.00057619,120]
[342738012,1732090325019,-468.78301098,0.00057619,120]
[342738013,1732090325028,-524.99492526,0.00057619,120]
[342738014,1732090325039,-500.0,0.00057619,120]
[342738015,1732090325050,-500.0,0.00057619,120]
[342738016,1732090325059,-400.0,0.00057619,120]
[342738017,1732090325069,-1322.0,0.00057764,30]
[342738018,1732090325078,-505.299863,0.00057764,30]
[342738019,1732090325087,-500.0,0.00057807,120]
[342738020,1732090325096,-500.0,0.00057807,120]
[342738021,1732090325105,-500.0,0.00057808,120]
[342738022,1732090325114,-500.0,0.00057808,120]
[342738023,1732090325123,-583.63,0.00057808,120]
[342738024,1732090325132,-500.0,0.00057808,120]
[342738025,1732090325142,-500.0,0.00057808,120]
[342738026,1732090325151,-1068.5,0.00057808,120]
[342738027,1732090325160,-598.94,0.00057808,120]
[342738028,1732090325168,-1682.29,0.00057808,120]
[342738029,1732090325178,-500.0,0.00057808,120]
[342738030,1732090325187,-226.25009702,0.00057808,120]
[342738031,1732090325196,-12247.35,0.00057808,120]
[342738032,1732090325205,-1420.1,0.00057808,120]
[342738033,1732090325214,-500.0,0.00057808,120]
[342738034,1732090325223,-1292.82,0.00057808,120]
[342738035,1732090325232,-500.0,0.00057808,120]
[342738036,1732090325241,-1329.44,0.00057808,120]
[342738037,1732090325250,-500.0,0.00057808,120]
[342738038,1732090325259,-500.0,0.00057808,120]
[342738039,1732090325269,-1607.8,0.00057808,120]
[342738040,1732090325278,-500.0,0.00057808,120]
[342738041,1732090325290,-1376.52,0.00057808,120]
[342738042,1732090325301,-500.0,0.00057808,120]
[342738043,1732090325313,-500.0,0.00057808,120]
[342738044,1732090325322,-742.7,0.00057808,20]
[342738045,1732090325331,-843.95,0.00057808,120]
[342738046,1732090325340,-500.0,0.00057808,120]
[342738047,1732090325351,-500.0,0.00057808,120]
[342738048,1732090325360,-500.0,0.00057808,120]
[342738049,1732090325369,-500.0,0.00057808,120]
[342738050,1732090325379,-1244.57,0.00057808,120]
[342738051,1732090325390,-500.0,0.00057808,120]
[342738052,1732090325400,-1316.06,0.00057808,120]
[342738053,1732090325409,-553.01,0.00057808,120]
[342738054,1732090325420,-500.0,0.00057808,120]
[342738055,1732090325429,-721.45,0.00057808,120]
[342738056,1732090325439,-2365.65,0.00057808,120]
[342738057,1732090325448,-526.18,0.00057808,120]
[342738058,1732090325457,-371.42,0.00057808,120]